fUSD/lending_fUSD_20250215
["ID","MTS","AMOUNT","RATE_DAILY","PERIOD"]
[353206025,1739649050443,-517.88,0.00011698,2]
[353206026,1739649050453,-155.989735,0.00011698,2]
[353206027,1739649050464,-500.0,0.00011698,2]
[353206028,1739649050473,-500.0,0.00011698,2]
[353206029,1739649050483,-500.0,0.00011698,2]
[353206030,1739649050492,-546.15,0.00011779,2]
[353206031,1739649050503,-500.0,0.00011779,2]
[353206032,1739649050513,-500.0,0.00011779,2]
[353206033,1739649050523,-500.0,0.00011779,2]
[353206034,1739649050539,-500.0,0.00011779,2]
[353206035,1739649050549,-565.15,0.00011779,2]
[353206036,1739649050559,-500.0,0.00011779,2]
[353206037,1739649050568,-449.77099,0.00011779,2]
[353206038,1739649050578,-500.0,0.00011779,2]
[353206039,1739649050587,-500.0,0.00011779,2]
[353206040,1739649050597,-635.76799,0.00011779,2]
[353206041,1739649050606,-500.0,0.00011779,2]
[353206042,1739649050615,-156.649254,0.00011779,2]
[353206043,1739649050625,-500.0,0.00011779,2]
[353206044,1739649050634,-500.0,0.00011779,2]
[353206045,1739649050644,-500.0,0.00011779,2]
[353206046,1739649050654,-500.0,0.00011779,2]
[353206047,1739649050663,-500.0,0.00011779,2]
[353206048,1739649050673,-500.0,0.00011779,2]
[353206049,1739649050682,-500.0,0.00011779,2]
[353206050,1739649050691,-292.540319,0.00011779,2]
[353206051,1739649050702,-500.0,0.00011779,2]
[353206052,1739649050711,-397.20268,0.00011779,2]
[353206053,1739649050721,-500.0,0.00011779,2]
[353206054,1739649050731,-584.46,0.00011779,2]
[353206055,1739649050741,-500.0,0.00011779,2]
[353206056,1739649050752,-500.0,0.00011779,2]
[353206057,1739649050762,-157.230671,0.00011779,2]
[353206058,1739649050771,-500.0,0.00011779,2]
[353206059,1739649050781,-238.56531,0.00011779,2]
[353206060,1739649050791,-500.0,0.00011779,2]
[353206061,1739649050801,-500.0,0.00011779,2]
[353206062,1739649050810,-500.0,0.00011779,2]
[353206063,1739649050821,-500.0,0.0001178,2]
[353206064,1739649050831,-500.0,0.0001178,2]
[353206065,1739649050841,-500.0,0.0001178,2]
[353206066,1739649050851,-357.67,0.0001178,2]
[353206067,1739649050861,-500.0,0.0001178,2]
[353206068,1739649050871,-500.0,0.0001178,2]
[353206069,1739649050881,-500.0,0.0001178,2]
[353206070,1739649050890,-293.31,0.0001178,2]
[353206071,1739649050900,-500.0,0.0001178,2]
[353206072,1739649050910,-271.34,0.0001178,2]
[353206073,1739649050919,-500.0,0.0001178,2]
[353206074,1739649050929,-500.0,0.0001178,2]
[353206075,1739649050939,-500.0,0.0001178,2]
[353206076,1739649050948,-500.0,0.0001178,2]
[353206077,1739649050958,-500.0,0.0001178,2]
[353206078,1739649050967,-500.0,0.0001178,2]
[353206079,1739649050977,-500.0,0.0001178,2]
[353206080,1739649050987,-500.0,0.0001178,2]
[353206081,1739649050997,-403.0,0.0001178,2]
[353206082,1739649051006,-500.0,0.00011799,2]
[353206083,1739649051016,-500.0,0.00011799,2]
[353206084,1739649051025,-500.0,0.00011799,2]
[353206085,1739649051034,-500.0,0.00011799,2]
[353206086,1739649051048,-500.0,0.00011861,2]
[353206087,1739649051058,-500.0,0.00011861,2]
[353206088,1739649051068,-565.15,0.00011861,2]
[353206089,1739649051077,-500.0,0.00011861,2]
[353206090,1739649051088,-180.17,0.00011861,2]
[353206091,1739649051097,-500.0,0.00011861,2]
[353206092,1739649051106,-500.0,0.00011861,2]
[353206093,1739649051118,-500.0,0.00011861,2]
[353206094,1739649051128,-500.0,0.00011861,2]
[353206095,1739649051138,-500.0,0.00011862,2]
[353206096,1739649051150,-500.0,0.00011862,2]
[353206097,1739649051160,-500.0,0.00011862,2]
[353206098,1739649051170,-449.77099,0.00011862,2]
[353206099,1739649051181,-500.0,0.00011862,2]
[353206100,1739649051191,-500.0,0.00011862,2]
[353206101,1739649051200,-635.76799,0.00011862,2]
[353206102,1739649051210,-500.0,0.00011862,2]
[353206103,1739649051219,-500.0,0.00011862,2]
[353206104,1739649051229,-500.0,0.00011862,2]
[353206105,1739649051238,-500.0,0.00011862,2]
[353206106,1739649051248,-159.44,0.00011862,2]
[353206107,1739649051259,-482.63,0.00011862,2]
[353206108,1739649051269,-500.0,0.00011862,2]
[353206109,1739649051278,-292.540319,0.00011862,2]
[353206110,1739649051288,-500.0,0.00011862,2]
[353206111,1739649051298,-500.0,0.00011862,2]
[353206112,1739649051308,-397.20268,0.00011862,2]
[353206113,1739649051317,-500.0,0.00011862,2]
[353206114,1739649051327,-500.0,0.00011862,2]
[353206115,1739649051339,-584.46,0.00011862,2]
[353206116,1739649051349,-500.0,0.00011862,2]
[353206117,1739649051358,-500.0,0.00011862,2]
[353206118,1739649051368,-500.0,0.00011862,2]
[353206119,1739649051379,-500.0,0.00011862,2]
[353206120,1739649051389,-500.0,0.00011862,2]
[353206121,1739649051399,-157.230671,0.00011862,2]
[353206122,1739649051409,-500.0,0.00011862,2]
[353206123,1739649051419,-500.0,0.00011862,2]
[353206124,1739649051429,-238.56531,0.00011862,2]
[353206125,1739649051439,-500.0,0.00011862,2]
[353206126,1739649051449,-500.0,0.00011862,2]
[353206127,1739649051460,-500.0,0.00011862,2]
[353206128,1739649051470,-500.0,0.00011862,2]
[353206129,1739649051480,-500.44,0.00011862,2]
[353206130,1739649051490,-500.0,0.00011862,2]
[353206131,1739649051500,-500.0,0.00011862,2]
[353206132,1739649051510,-500.0,0.00011916,2]
[353206133,1739649051519,-523.0,0.00011942,2]
[353206134,1739649051530,-500.0,0.00011944,2]
[353206135,1739649051541,-500.0,0.00011944,2]
[353206136,1739649051552,-156.79,0.00011944,2]
[353206137,1739649051562,-500.0,0.00011944,2]
[353206138,1739649051572,-565.15,0.00011944,2]
[353206139,1739649051582,-402.14,0.00011944,2]
[353206140,1739649051592,-449.77099,0.00011944,2]
[353206141,1739649051602,-500.0,0.00011944,2]
[353206142,1739649051612,-500.0,0.00011944,2]
[353206143,1739649051622,-635.76799,0.00011944,2]
[353206144,1739649051632,-500.0,0.00011944,2]
[353206145,1739649051642,-500.0,0.00011944,2]
[353206146,1739649051793,-500.0,0.00011944,2]
[353206147,1739649051803,-500.0,0.00011944,2]
[353206148,1739649051813,-500.0,0.00011944,2]
[353206149,1739649051823,-500.0,0.00011944,2]
[353206150,1739649051833,-500.0,0.00011944,2]
[353206151,1739649051843,-500.0,0.00011944,2]
[353206152,1739649051853,-500.0,0.00011944,2]
[353206153,1739649051863,-292.540319,0.00011944,2]
[353206154,1739649051872,-500.0,0.00011944,2]
[353206155,1739649051883,-182.07,0.00011944,2]
[353206156,1739649051893,-397.20268,0.00011944,2]
[353206157,1739649051904,-500.0,0.00011944,2]
[353206158,1739649051914,-500.0,0.00011944,2]
[353206159,1739649051924,-584.46,0.00011944,2]
[353206160,1739649051934,-500.0,0.00011944,2]
[353206161,1739649051944,-500.0,0.00011944,2]
[353206162,1739649051953,-528.5,0.00011944,2]
[353206163,1739649051963,-500.0,0.00011944,2]
[353206164,1739649051973,-500.0,0.00011944,2]
[353206165,1739649051982,-500.0,0.00011944,2]
[353206166,1739649051992,-157.230671,0.00011944,2]
[353206167,1739649052002,-500.0,0.00011944,2]
[353206168,1739649052012,-500.0,0.00011944,2]
[353206169,1739649052022,-500.0,0.00011944,2]
[353206170,1739649052031,-238.56531,0.00011944,2]
[353206171,1739649052042,-500.0,0.00011944,2]
[353206172,1739649052052,-156.38,0.00011944,2]
[353206173,1739649052061,-500.0,0.00011944,2]
[353206174,1739649052071,-500.0,0.00011944,2]
[353206175,1739649052081,-500.0,0.00011944,2]
[353206176,1739649052091,-255.0,0.00011998,2]
[353206177,1739649052100,-613.96,0.00012026,2]
[353206178,1739649052111,-540.57,0.00012026,2]
[353206179,1739649052122,-500.0,0.00012026,2]
[353206180,1739649052132,-565.15,0.00012026,2]
[353206181,1739649052141,-449.77099,0.00012026,2]
[353206182,1739649052150,-500.0,0.00012026,2]
[353206183,1739649052160,-500.0,0.00012026,2]
[353206184,1739649052169,-635.76799,0.00012026,2]
[353206185,1739649052178,-379.0,0.00012026,2]
[353206186,1739649052187,-156.649254,0.00012026,2]
[353206187,1739649052197,-450.9,0.00012026,2]
[353206188,1739649052206,-500.0,0.00012026,2]
[353206189,1739649052215,-500.0,0.00012026,2]
[353206190,1739649052225,-586.99,0.00012026,2]
[353206191,1739649052234,-500.0,0.00012026,2]
[353206192,1739649052244,-500.0,0.00012026,2]
[353206193,1739649052253,-292.540319,0.00012026,2]
[353206194,1739649052262,-500.0,0.00012026,2]
[353206195,1739649052272,-397.20268,0.00012026,2]
[353206196,1739649052285,-500.0,0.00012026,2]
[353206197,1739649052295,-584.46,0.00012026,2]
[353206198,1739649052304,-500.0,0.00012026,2]
[353206199,1739649052314,-500.0,0.00012026,2]
[353206200,1739649052324,-500.0,0.00012026,2]
[353206201,1739649052334,-157.230671,0.00012026,2]
[353206202,1739649052344,-238.56531,0.00012026,2]
[353206203,1739649052353,-500.0,0.00012026,2]
[353206204,1739649052363,-500.0,0.00012026,2]
[353206205,1739649052373,-500.0,0.00012026,2]
[353206206,1739649052383,-386.13,0.00012027,2]
[353206207,1739649052393,-500.0,0.00012027,2]
[353206208,1739649052402,-500.0,0.00012027,2]
[353206209,1739649052412,-500.0,0.00012027,2]
[353206210,1739649052421,-500.0,0.00012027,2]
[353206211,1739649052430,-500.0,0.00012027,2]
[353206212,1739649052440,-500.0,0.00012027,2]
[353206213,1739649052450,-500.0,0.00012027,2]
[353206214,1739649052461,-500.0,0.00012027,2]
[353206215,1739649052471,-241.68,0.00012108,2]
[353206216,1739649052480,-565.15,0.00012108,2]
[353206217,1739649052490,-449.77099,0.00012108,2]
[353206218,1739649052499,-500.0,0.00012108,2]
[353206219,1739649052508,-500.0,0.00012108,2]
[353206220,1739649052517,-635.76799,0.00012108,2]
[353206221,1739649052527,-500.0,0.00012108,2]
[353206222,1739649052536,-181.56,0.00012108,2]
[353206223,1739649052546,-500.0,0.00012108,2]
[353206224,1739649052556,-500.0,0.00012108,2]
[353206225,1739649052565,-292.540319,0.00012108,2]
[353206226,1739649052574,-500.0,0.00012108,2]
[353206227,1739649052584,-397.20268,0.00012108,2]
[353206228,1739649052594,-500.0,0.00012108,2]
[353206229,1739649052604,-584.46,0.00012108,2]
[353206230,1739649052613,-500.0,0.00012108,2]
[353206231,1739649052623,-500.0,0.00012108,2]
[353206232,1739649052632,-500.0,0.00012108,2]
[353206233,1739649052642,-157.230671,0.00012108,2]
[353206234,1739649052653,-238.56531,0.00012108,2]
[353206235,1739649052663,-500.0,0.00012108,2]
[353206236,1739649052672,-500.0,0.00012108,2]
[353206237,1739649052682,-500.0,0.00012108,2]
[353206238,1739649052692,-350.71,0.00012109,2]
[353206239,1739649052701,-565.63,0.00012109,2]
[353206240,1739649052710,-500.0,0.00012109,2]
[353206241,1739649052719,-500.0,0.00012109,2]
[353206242,1739649052728,-194.0,0.00012109,2]
[353206243,1739649052738,-500.0,0.00012109,2]
[353206244,1739649052747,-500.0,0.00012109,2]
[353206245,1739649052757,-500.0,0.00012109,2]
[353206246,1739649052766,-565.15,0.0001219,2]
[353206247,1739649052775,-500.0,0.0001219,2]
[353206248,1739649052784,-500.0,0.0001219,2]
[353206249,1739649052793,-328.65,0.0001219,2]
[353206250,1739649052803,-500.0,0.0001219,2]
[353206251,1739649052812,-500.0,0.0001219,2]
[353206252,1739649052821,-500.0,0.0001219,2]
[353206253,1739649052830,-500.0,0.0001219,2]
[353206254,1739649052840,-584.46,0.0001219,2]
[353206255,1739649052850,-500.0,0.0001219,2]
[353206256,1739649052860,-500.0,0.0001219,2]
[353206257,1739649052869,-500.0,0.0001219,2]
[353206258,1739649052880,-500.0,0.0001219,2]
[353206259,1739649052890,-500.0,0.0001219,2]
[353206260,1739649052899,-500.0,0.0001219,2]
[353206261,1739649052909,-500.0,0.00012191,2]
[353206262,1739649052919,-500.0,0.00012191,2]
[353206263,1739649052928,-500.0,0.00012191,2]
[353206264,1739649052937,-500.0,0.00012191,2]
[353206265,1739649052947,-500.0,0.00012191,2]
[353206266,1739649052957,-152.0,0.00012247,3]
[353206267,1739649052967,-565.15,0.00012272,2]
[353206268,1739649052977,-272.1,0.00012272,2]
[353206269,1739649052988,-500.0,0.00012272,2]
[353206270,1739649052997,-474.62,0.00012273,2]
[353206271,1739649053007,-500.0,0.00012273,2]
[353206272,1739649053017,-500.0,0.00012273,2]
[353206273,1739649053027,-500.0,0.00012273,2]
[353206274,1739649053038,-500.0,0.00012273,2]
[353206275,1739649053050,-584.46,0.00012273,2]
[353206276,1739649053059,-500.0,0.00012273,2]
[353206277,1739649053069,-500.0,0.00012273,2]
[353206278,1739649053078,-500.0,0.00012273,2]
[353206279,1739649053090,-500.0,0.00012273,2]
[353206280,1739649053100,-500.0,0.00012273,2]
[353206281,1739649053109,-500.0,0.00012273,2]
[353206282,1739649053123,-500.0,0.00012273,2]
[353206283,1739649053132,-500.0,0.00012273,2]
[353206284,1739649053142,-500.0,0.00012273,2]
[353206285,1739649053151,-500.0,0.00012273,2]
[353206286,1739649053160,-1000.0,0.00012325,2]
[353206287,1739649053170,-565.15,0.00012355,2]
[353206288,1739649053179,-500.0,0.00012355,2]
[353206289,1739649053188,-500.0,0.00012355,2]
[353206290,1739649053198,-500.0,0.00012355,2]
[353206291,1739649053208,-500.0,0.00012355,2]
[353206292,1739649053218,-584.46,0.00012355,2]
[353206293,1739649053227,-500.0,0.00012355,2]
[353206294,1739649053236,-500.0,0.00012355,2]
[353206295,1739649053246,-500.0,0.00012355,2]
[353206296,1739649053256,-500.0,0.00012355,2]
[353206297,1739649053266,-500.0,0.00012355,2]
[353206298,1739649053275,-250.9,0.00012355,2]
[353206299,1739649053285,-500.0,0.00012355,2]
[353206300,1739649053294,-402.4,0.00012355,2]
[353206301,1739649053303,-500.0,0.00012355,2]
[353206302,1739649053313,-500.0,0.00012355,2]
[353206303,1739649053323,-500.0,0.00012355,2]
[353206304,1739649053333,-565.15,0.00012437,2]
[353206305,1739649053343,-500.0,0.00012437,2]
[353206306,1739649053353,-500.0,0.00012437,2]
[353206307,1739649053362,-500.0,0.00012437,2]
[353206308,1739649053372,-643.68,0.00012437,2]
[353206309,1739649053383,-584.46,0.00012437,2]
[353206310,1739649053393,-500.0,0.00012437,2]
[353206311,1739649053403,-500.0,0.00012437,2]
[353206312,1739649053412,-500.0,0.00012437,2]
[353206313,1739649053423,-500.0,0.00012437,2]
[353206314,1739649053432,-500.0,0.00012437,2]
[353206315,1739649053448,-271.04,0.00012438,2]
[353206316,1739649053459,-500.0,0.00012438,2]
[353206317,1739649053468,-500.0,0.00012438,2]
[353206318,1739649053478,-201.8,0.00012438,2]
[353206319,1739649053487,-293.0,0.00012438,2]
[353206320,1739649053497,-565.15,0.00012519,2]
[353206321,1739649053507,-500.0,0.00012519,2]
[353206322,1739649053516,-632.54,0.00012519,2]
[353206323,1739649053526,-500.0,0.00012519,2]
[353206324,1739649053535,-584.46,0.00012519,2]
[353206325,1739649053546,-500.0,0.00012519,2]
[353206326,1739649053555,-500.0,0.00012519,2]
[353206327,1739649053565,-500.0,0.00012519,2]
[353206328,1739649053575,-603.74,0.00012519,2]
[353206329,1739649053585,-500.0,0.00012519,2]
[353206330,1739649053606,-500.0,0.0001252,2]
[353206331,1739649053623,-500.0,0.0001252,2]
[353206332,1739649053633,-600.0,0.00012524,2]
[353206333,1739649053643,-500.0,0.00012524,2]
[353206334,1739649053653,-152.0,0.00012597,4]
[353206335,1739649053664,-565.15,0.00012601,2]
[353206336,1739649053673,-500.0,0.00012601,2]
[353206337,1739649053682,-396.12,0.00012601,2]
[353206338,1739649053692,-584.46,0.00012601,2]
[353206339,1739649053702,-500.0,0.00012601,2]
[353206340,1739649053712,-500.0,0.00012601,2]
[353206341,1739649053721,-500.0,0.00012601,2]
[353206342,1739649053730,-500.0,0.00012601,2]
[353206343,1739649053745,-500.0,0.00012602,2]
[353206344,1739649053755,-573.18,0.00012602,2]
[353206345,1739649053764,-155.54,0.00012678,2]
[353206346,1739649053774,-565.15,0.00012683,2]
[353206347,1739649053784,-500.0,0.00012683,2]
[353206348,1739649053794,-500.0,0.00012684,2]
[353206349,1739649053803,-584.46,0.00012684,2]
[353206350,1739649053813,-500.0,0.00012684,2]
[353206351,1739649053823,-500.0,0.00012684,2]
[353206352,1739649053834,-500.0,0.00012684,2]
[353206353,1739649053843,-607.9,0.00012684,2]
[353206354,1739649053853,-459.94,0.00012699,2]
[353206355,1739649053863,-565.15,0.00012766,2]
[353206356,1739649053872,-500.0,0.00012766,2]
[353206357,1739649053882,-584.46,0.00012766,2]
[353206358,1739649053892,-500.0,0.00012766,2]
[353206359,1739649053902,-500.0,0.00012766,2]
[353206360,1739649053911,-486.88,0.00012766,2]
[353206361,1739649053921,-500.0,0.00012766,2]
[353206362,1739649053931,-565.15,0.00012848,2]
[353206363,1739649053941,-500.0,0.00012848,2]
[353206364,1739649053950,-584.46,0.00012848,2]
[353206365,1739649053960,-500.0,0.00012848,2]
[353206366,1739649053970,-500.0,0.00012848,2]
[353206367,1739649053980,-500.0,0.00012848,2]
[353206368,1739649053990,-513.94,0.00012864,2]
[353206369,1739649054000,-324.88433575,0.00012891,2]
[353206370,1739649054010,-565.15,0.0001293,2]
[353206371,1739649054019,-500.0,0.0001293,2]
[353206372,1739649054030,-584.46,0.0001293,2]
[353206373,1739649054043,-500.0,0.0001293,2]
[353206374,1739649054053,-500.0,0.0001293,2]
[353206375,1739649054063,-500.0,0.0001293,2]
[353206376,1739649054072,-152.0,0.00012946,5]
[353206377,1739649054082,-550.0,0.00013,2]
[353206378,1739649054092,-565.15,0.00013012,2]
[353206379,1739649054101,-500.0,0.00013012,2]
[353206380,1739649054111,-584.46,0.00013012,2]
[353206381,1739649054121,-152.74,0.00013012,2]
[353206382,1739649054133,-500.0,0.00013012,2]
[353206383,1739649054143,-638.64,0.00013012,2]
[353206384,1739649054154,-3915.0,0.00013067,2]
[353206385,1739649054164,-150.0,0.00013067,2]
[353206386,1739649054174,-1109.0,0.00013067,2]
[353206387,1739649054183,-565.15,0.00013094,2]
[353206388,1739649054193,-500.0,0.00013094,2]
[353206389,1739649054203,-494.19,0.00013095,2]
[353206390,1739649054212,-584.66,0.00013095,2]
[353206391,1739649054221,-565.15,0.00013176,2]
[353206392,1739649054232,-479.68,0.00013176,2]
[353206393,1739649054241,-163.37788915,0.00013205,2]
[353206394,1739649054250,-565.38,0.00013259,2]
[353206395,1739649054260,-163.37788915,0.00013288,2]
[353206396,1739649054269,-152.0,0.00013296,6]
[353206397,1739649054279,-1155.72,0.000133,2]
[353206398,1739649054288,-153.78535812,0.00013315,2]
[353206399,1739649054298,-163.37788915,0.0001337,2]
[353206400,1739649054308,-500.0,0.00013424,2]
[353206401,1739649054317,-163.37788915,0.00013425,2]
[353206402,1739649054327,-739.33,0.00013486,2]
[353206403,1739649054336,-163.37788915,0.00013507,2]
[353206404,1739649054346,-163.37788915,0.00013562,2]
[353206405,1739649054355,-2000.0,0.00013581,2]
[353206406,1739649054367,-179.67,0.00013581,2]
[353206407,1739649054377,-163.37788915,0.00013644,2]
[353206408,1739649054388,-152.0,0.00013646,7]
[353206409,1739649054398,-500.0,0.00013698,2]
[353206410,1739649054409,-500.0,0.00013698,2]
[353206411,1739649054419,-500.0,0.00013698,2]
[353206412,1739649054428,-500.0,0.00013698,2]
[353206413,1739649054438,-500.0,0.00013698,2]
[353206414,1739649054448,-500.0,0.00013698,2]
[353206415,1739649054457,-541.8,0.00013698,2]
[353206416,1739649054466,-200.0,0.00013699,2]
[353206417,1739649054476,-165.28,0.00013699,2]
[353206418,1739649054485,-163.37788915,0.00013699,2]
[353206419,1739649054494,-4000.0,0.00013699,2]
[353206420,1739649054503,-163.37788915,0.00013781,2]
[353206421,1739649054513,-23900.0,0.00013796,2]
[353206422,1739649054522,-250.0,0.00013796,2]
[353206423,1739649054531,-163.37788915,0.00013863,2]
[353206424,1739649054540,-1000.0,0.00013865,2]
[353206425,1739649054550,-500.0,0.00013889,2]
[353206426,1739649054559,-9575.32607317,0.0001389,2]
[353206427,1739649054568,-500.0,0.00013894,2]
[353206428,1739649054577,-600.0,0.00013894,2]
[353206429,1739649054586,-500.0,0.00013894,2]
[353206430,1739649054595,-163.37788915,0.00013918,2]
[353206431,1739649054605,-152.0,0.00013996,8]
[353206432,1739649054614,-360.91892032,0.00014,2]
[353206433,1739649054624,-150.0,0.00014078,2]
[353206434,1739649054633,-300.0,0.00014078,2]
[353206435,1739649054643,-459.94,0.0001411,2]
[353206436,1739649054652,-439.94,0.00014207,2]
[353206437,1739649054661,-1550.98,0.00014207,2]
[353206438,1739649054670,-484.77,0.00014307,2]
[353206439,1739649054680,-152.0,0.00014346,9]
[353206440,1739649054689,-500.0,0.00014355,2]
[353206441,1739649054698,-500.0,0.00014355,2]
[353206442,1739649054707,-500.0,0.00014355,2]
[353206443,1739649054716,-647.32,0.00014355,2]
[353206444,1739649054726,-236.20403714,0.00014355,2]
[353206445,1739649054735,-500.0,0.00014355,2]
[353206446,1739649054745,-440.01874215,0.00014355,2]
[353206447,1739649054754,-500.0,0.00014355,2]
[353206448,1739649054763,-500.0,0.00014355,2]
[353206449,1739649054773,-500.0,0.00014355,2]
[353206450,1739649054782,-500.0,0.00014355,2]
[353206451,1739649054791,-500.0,0.00014355,2]
[353206452,1739649054801,-500.0,0.00014355,2]
[353206453,1739649054810,-500.0,0.00014355,2]
[353206454,1739649054819,-500.0,0.00014355,2]
[353206455,1739649054830,-500.0,0.00014355,2]
[353206456,1739649054839,-500.0,0.00014355,2]
[353206457,1739649054848,-500.0,0.00014355,2]
[353206458,1739649054858,-500.0,0.00014355,2]
[353206459,1739649054869,-507.21306044,0.00014355,2]
[353206460,1739649054878,-500.0,0.00014355,2]
[353206461,1739649054888,-500.0,0.00014355,2]
[353206462,1739649054897,-500.0,0.00014355,2]
[353206463,1739649054906,-500.0,0.00014355,2]
[353206464,1739649054916,-500.0,0.00014355,2]
[353206465,1739649054925,-500.0,0.00014355,2]
[353206466,1739649054935,-500.0,0.00014355,2]
[353206467,1739649054945,-500.0,0.00014355,2]
[353206468,1739649054955,-500.0,0.00014355,2]
[353206469,1739649054965,-500.0,0.00014355,2]
[353206470,1739649054974,-500.0,0.00014355,2]
[353206471,1739649054983,-500.0,0.00014355,2]
[353206472,1739649054992,-610.29,0.00014355,2]
[353206473,1739649055002,-553.83,0.00014355,2]
[353206474,1739649055012,-500.0,0.00014355,2]
[353206475,1739649055022,-500.0,0.00014355,2]
[353206476,1739649055033,-624.24,0.00014355,2]
[353206477,1739649055046,-500.0,0.00014355,2]
[353206478,1739649055056,-500.0,0.00014355,2]
[353206479,1739649055066,-500.0,0.00014355,2]
[353206480,1739649055074,-524.36,0.00014355,2]
[353206481,1739649055224,-500.0,0.00014355,2]
[353206482,1739649055234,-500.0,0.00014355,2]
[353206483,1739649055244,-500.0,0.00014355,2]
[353206484,1739649055253,-500.0,0.00014355,2]
[353206485,1739649055262,-500.0,0.00014355,2]
[353206486,1739649055272,-500.0,0.00014355,2]
[353206487,1739649055281,-500.0,0.00014355,2]
[353206488,1739649055290,-500.0,0.00014355,2]
[353206489,1739649055299,-500.0,0.00014355,2]
[353206490,1739649055308,-500.0,0.00014355,2]
[353206491,1739649055318,-500.0,0.00014355,2]
[353206492,1739649055329,-500.0,0.00014355,2]
[353206493,1739649055339,-500.0,0.00014355,2]
[353206494,1739649055351,-500.0,0.00014355,2]
[353206495,1739649055360,-500.0,0.00014355,2]
[353206496,1739649055369,-500.0,0.00014355,2]
[353206497,1739649055379,-500.0,0.00014355,2]
[353206498,1739649055387,-544.37,0.00014355,2]
[353206499,1739649055397,-500.0,0.00014355,2]
[353206500,1739649055406,-500.0,0.00014355,2]
[353206501,1739649055415,-500.0,0.00014355,2]
[353206502,1739649055424,-500.0,0.00014355,2]
[353206503,1739649055435,-500.0,0.00014355,2]
[353206504,1739649055444,-500.0,0.00014355,2]
[353206505,1739649055453,-500.0,0.00014355,2]
[353206506,1739649055463,-500.0,0.00014355,2]
[353206507,1739649055472,-500.0,0.00014355,2]
[353206508,1739649055481,-500.0,0.00014355,2]
[353206509,1739649055490,-500.0,0.00014355,2]
[353206510,1739649055500,-500.0,0.00014355,2]
[353206511,1739649055510,-500.0,0.00014355,2]
[353206512,1739649055519,-500.0,0.00014355,2]
[353206513,1739649055529,-500.0,0.00014355,2]
[353206514,1739649055539,-500.0,0.00014355,2]
[353206515,1739649055549,-500.0,0.00014355,2]
[353206516,1739649055558,-500.0,0.00014355,2]
[353206517,1739649055567,-341.24421545,0.00014355,2]
[353206518,1739649055576,-500.0,0.00014355,2]
[353206519,1739649055585,-500.0,0.00014355,2]
[353206520,1739649055594,-500.0,0.00014355,2]
[353206521,1739649055605,-500.0,0.00014355,2]
[353206522,1739649055616,-500.0,0.00014355,2]
[353206523,1739649055626,-502.4465916,0.00014355,2]
[353206524,1739649055637,-500.0,0.00014355,2]